[Event "Titled Tuesday Blitz November 08 Late 2022"]
[White "Roux, Baptiste"]
[Black "Onslow, Alfie"]
[WhiteFideId "36017450"]
[BlackFideId "436976"]
[WhiteElo "2077"]
[BlackElo "2015"]
[Result "1-0"]
[Round "07"]
[TimeControl "180+1"]
[Date "2022.11.09"]
[WhiteClock "0:00:22"]
[BlackClock "0:00:04"]

1. d4 {[%clk 0:02:59]}  Nf6 {[%clk 0:02:59]} 2. Bf4 {[%clk 0:02:59]}  c5 {[%clk 0:02:56]} 3. d5 {[%clk 0:02:56]}  b5 {[%clk 0:02:53]} 4. f3 {[%clk 0:02:53]}  d6 {[%clk 0:02:46]} 5. e4 {[%clk 0:02:53]}  b4 {[%clk 0:02:45]} 6. a3 {[%clk 0:02:51]}  g6 {[%clk 0:02:39]} 7. Nd2 {[%clk 0:02:43]}  Bg7 {[%clk 0:02:38]} 8. Nc4 {[%clk 0:02:37]}  O-O {[%clk 0:02:34]} 9. axb4 {[%clk 0:02:34]}  cxb4 {[%clk 0:02:34]} 10. Bd3 {[%clk 0:02:35]}  a5 {[%clk 0:02:32]} 11. Ne2 {[%clk 0:02:33]}  Nbd7 {[%clk 0:02:25]} 12. O-O {[%clk 0:02:31]}  Nc5 {[%clk 0:02:20]} 13. Be3 {[%clk 0:02:24]}  Qc7 {[%clk 0:02:12]} 14. Nd4 {[%clk 0:02:22]}  Bd7 {[%clk 0:02:11]} 15. Qe2 {[%clk 0:02:15]}  a4 {[%clk 0:02:00]} 16. Nd2 {[%clk 0:01:57]}  Rfc8 {[%clk 0:01:53]} 17. Bb5 {[%clk 0:01:51]}  Bxb5 {[%clk 0:01:36]} 18. Qxb5 {[%clk 0:01:48]}  Rcb8 {[%clk 0:01:36]} 19. Qe2 {[%clk 0:01:35]}  Nfd7 {[%clk 0:01:28]} 20. c3 {[%clk 0:01:27]}  bxc3 {[%clk 0:01:23]} 21. bxc3 {[%clk 0:01:27]}  a3 {[%clk 0:01:23]} 22. Nc4 {[%clk 0:01:18]}  Na4 {[%clk 0:00:45]} 23. Rxa3 {[%clk 0:01:13]}  Rc8 {[%clk 0:00:26]} 24. Nc6 {[%clk 0:01:08]}  Ndc5 {[%clk 0:00:20]} 25. Bd4 {[%clk 0:01:02]}  Nxc3 {[%clk 0:00:15]} 26. Rxc3 {[%clk 0:00:51]}  Bxd4+ {[%clk 0:00:14]} 27. Nxd4 {[%clk 0:00:51]}  Ra4 {[%clk 0:00:13]} 28. Nc6 {[%clk 0:00:45]}  Qb7 {[%clk 0:00:10]} 29. Rfc1 {[%clk 0:00:38]}  Kg7 {[%clk 0:00:06]} 30. Qd2 {[%clk 0:00:34]}  f6 {[%clk 0:00:05]} 31. h4 {[%clk 0:00:27]}  Nb3 {[%clk 0:00:04]} 32. Qb2 {[%clk 0:00:22]} 1-0


[Site "https://www.chess.com"]

[Event "Titled Tuesday Blitz November 08 Late 2022"]
[White "Salman, Pavel"]
[Black "Guha, Eshan"]
[WhiteFideId "24153753"]
[BlackFideId "30958628"]
[WhiteElo "2187"]
[BlackElo "2357"]
[Result "0-1"]
[Round "07"]
[TimeControl "180+1"]
[Date "2022.11.09"]
[WhiteClock "0:00:16"]
[BlackClock "0:00:07"]

1. d4 {[%clk 0:03:00]}  Nf6 {[%clk 0:02:59]} 2. Nc3 {[%clk 0:03:00]}  d5 {[%clk 0:02:59]} 3. Bf4 {[%clk 0:03:00]}  a6 {[%clk 0:02:58]} 4. e3 {[%clk 0:03:00]}  e6 {[%clk 0:02:57]} 5. Bd3 {[%clk 0:03:00]}  c5 {[%clk 0:02:57]} 6. Nf3 {[%clk 0:02:58]}  Nc6 {[%clk 0:02:57]} 7. O-O {[%clk 0:02:57]}  c4 {[%clk 0:02:57]} 8. Be2 {[%clk 0:02:56]}  Bd6 {[%clk 0:02:57]} 9. Ne5 {[%clk 0:02:56]}  Bxe5 {[%clk 0:02:54]} 10. Bxe5 {[%clk 0:02:51]}  Nxe5 {[%clk 0:02:52]} 11. dxe5 {[%clk 0:02:52]}  Nd7 {[%clk 0:02:51]} 12. f4 {[%clk 0:02:52]}  b5 {[%clk 0:02:45]} 13. Kh1 {[%clk 0:02:48]}  Bb7 {[%clk 0:02:42]} 14. a3 {[%clk 0:02:45]}  Qb6 {[%clk 0:02:26]} 15. Qd4 {[%clk 0:02:43]}  O-O {[%clk 0:02:11]} 16. Bf3 {[%clk 0:02:34]}  Bc6 {[%clk 0:02:05]} 17. Rad1 {[%clk 0:02:34]}  a5 {[%clk 0:01:58]} 18. Qxb6 {[%clk 0:02:28]}  Nxb6 {[%clk 0:01:59]} 19. e4 {[%clk 0:02:29]}  b4 {[%clk 0:01:42]} 20. Nb1 {[%clk 0:01:38]}  dxe4 {[%clk 0:01:40]} 21. Be2 {[%clk 0:01:34]}  Bd5 {[%clk 0:01:39]} 22. Rd4 {[%clk 0:01:30]}  Rfc8 {[%clk 0:01:37]} 23. f5 {[%clk 0:01:24]}  Nd7 {[%clk 0:01:07]} 24. fxe6 {[%clk 0:01:14]}  fxe6 {[%clk 0:01:07]} 25. Nd2 {[%clk 0:01:13]}  Nxe5 {[%clk 0:01:07]} 26. h3 {[%clk 0:01:04]}  e3 {[%clk 0:00:55]} 27. Nf3 {[%clk 0:01:00]}  Nc6 {[%clk 0:00:30]} 28. Rxc4 {[%clk 0:00:42]}  Bxc4 {[%clk 0:00:29]} 29. Bxc4 {[%clk 0:00:43]}  Nd4 {[%clk 0:00:23]} 30. b3 {[%clk 0:00:40]}  Rxc4 {[%clk 0:00:14]} 31. bxc4 {[%clk 0:00:39]}  Nxc2 {[%clk 0:00:14]} 32. Rc1 {[%clk 0:00:17]}  b3 {[%clk 0:00:13]} 33. Rb1 {[%clk 0:00:16]}  a4 {[%clk 0:00:11]} 34. Kg1 {[%clk 0:00:16]}  Rc8 {[%clk 0:00:10]} 35. Kf1 {[%clk 0:00:16]}  Rxc4 {[%clk 0:00:10]} 36. Ke2 {[%clk 0:00:16]}  Nd4+ {[%clk 0:00:06]} 37. Kd3 {[%clk 0:00:15]}  Nxf3 {[%clk 0:00:04]} 38. Kxc4 {[%clk 0:00:14]}  Nd2+ {[%clk 0:00:05]} 39. Kd3 {[%clk 0:00:14]}  Nxb1 {[%clk 0:00:05]} 40. Kxe3 {[%clk 0:00:15]}  Nxa3 {[%clk 0:00:06]} 41. Kd3 {[%clk 0:00:16]}  b2 {[%clk 0:00:07]} 0-1


[Site "https://www.chess.com"]

[Event "Titled Tuesday Blitz November 08 Late 2022"]
[White "Sanchez, Robert"]
[Black "Tsukerman, Julia"]
[WhiteFideId "2034360"]
[BlackFideId "2621649"]
[WhiteElo "2302"]
[BlackElo "1667"]
[Result "0-1"]
[Round "07"]
[TimeControl "180+1"]
[Date "2022.11.09"]
[WhiteClock "0:02:48"]
[BlackClock "0:02:24"]

1. e4 {[%clk 0:03:00]}  c5 {[%clk 0:02:58]} 2. Nf3 {[%clk 0:03:00]}  d6 {[%clk 0:02:59]} 3. d4 {[%clk 0:03:01]}  cxd4 {[%clk 0:02:59]} 4. Nxd4 {[%clk 0:03:01]}  Nf6 {[%clk 0:03:00]} 5. Nc3 {[%clk 0:03:02]}  a6 {[%clk 0:03:00]} 6. Be3 {[%clk 0:03:02]}  e5 {[%clk 0:03:00]} 7. Nb3 {[%clk 0:03:02]}  Be6 {[%clk 0:03:01]} 8. f3 {[%clk 0:03:03]}  Be7 {[%clk 0:02:59]} 9. Qd2 {[%clk 0:03:03]}  Nbd7 {[%clk 0:02:59]} 10. O-O-O {[%clk 0:03:04]}  b5 {[%clk 0:02:59]} 11. g4 {[%clk 0:03:04]}  Qc7 {[%clk 0:02:52]} 12. g5 {[%clk 0:03:03]}  Nh5 {[%clk 0:02:52]} 13. Nd5 {[%clk 0:03:03]}  Bxd5 {[%clk 0:02:50]} 14. exd5 {[%clk 0:03:04]}  Rd8 {[%clk 0:02:42]} 15. Na5 {[%clk 0:03:02]}  Nc5 {[%clk 0:02:26]} 16. Nc6 {[%clk 0:02:58]}  Rd7 {[%clk 0:02:24]} 17. Bh3 {[%clk 0:02:48]} 0-1


[Site "https://www.chess.com"]

[Event "Titled Tuesday Blitz November 08 Late 2022"]
[White "Shankland, Sam"]
[Black "Sebag, Marie"]
[WhiteFideId "2004887"]
[BlackFideId "617822"]
[WhiteElo "2612"]
[BlackElo "2440"]
[Result "1-0"]
[Round "07"]
[TimeControl "180+1"]
[Date "2022.11.08"]
[WhiteClock "0:00:32"]
[BlackClock "0:00:01"]

1. d4 {[%clk 0:03:00]}  d5 {[%clk 0:02:59]} 2. c4 {[%clk 0:03:01]}  e6 {[%clk 0:02:59]} 3. Nf3 {[%clk 0:02:59]}  a6 {[%clk 0:02:58]} 4. c5 {[%clk 0:02:56]}  Nf6 {[%clk 0:02:55]} 5. Nc3 {[%clk 0:02:55]}  b6 {[%clk 0:02:55]} 6. cxb6 {[%clk 0:02:54]}  cxb6 {[%clk 0:02:55]} 7. Bf4 {[%clk 0:02:55]}  Bd6 {[%clk 0:02:49]} 8. e3 {[%clk 0:02:54]}  Bb7 {[%clk 0:02:48]} 9. Bd3 {[%clk 0:02:47]}  Bxf4 {[%clk 0:02:41]} 10. exf4 {[%clk 0:02:47]}  O-O {[%clk 0:02:41]} 11. O-O {[%clk 0:02:47]}  Nbd7 {[%clk 0:02:38]} 12. Qe2 {[%clk 0:02:42]}  Rc8 {[%clk 0:02:36]} 13. Bxa6 {[%clk 0:02:41]}  Bxa6 {[%clk 0:02:31]} 14. Qxa6 {[%clk 0:02:42]}  Qc7 {[%clk 0:02:30]} 15. g3 {[%clk 0:02:38]}  Qc4 {[%clk 0:02:23]} 16. Qxc4 {[%clk 0:02:37]}  Rxc4 {[%clk 0:02:22]} 17. Rfc1 {[%clk 0:02:28]}  Rfc8 {[%clk 0:02:21]} 18. Ne2 {[%clk 0:02:21]}  Kf8 {[%clk 0:01:59]} 19. Rxc4 {[%clk 0:02:18]}  dxc4 {[%clk 0:01:55]} 20. Nc3 {[%clk 0:02:17]}  Nd5 {[%clk 0:01:51]} 21. Nd2 {[%clk 0:02:09]}  Nxc3 {[%clk 0:01:35]} 22. bxc3 {[%clk 0:02:09]}  Nf6 {[%clk 0:01:35]} 23. Rc1 {[%clk 0:02:05]}  Nd5 {[%clk 0:01:32]} 24. Rc2 {[%clk 0:01:56]}  b5 {[%clk 0:01:27]} 25. Kf1 {[%clk 0:01:56]}  Ra8 {[%clk 0:01:22]} 26. Ke2 {[%clk 0:01:55]}  Ke7 {[%clk 0:01:16]} 27. Nb1 {[%clk 0:01:52]}  Kd7 {[%clk 0:01:15]} 28. a3 {[%clk 0:01:51]}  Kc6 {[%clk 0:01:13]} 29. Ra2 {[%clk 0:01:46]}  h6 {[%clk 0:00:48]} 30. Rc2 {[%clk 0:01:43]}  Ra7 {[%clk 0:00:42]} 31. h4 {[%clk 0:01:43]}  Ra8 {[%clk 0:00:42]} 32. Kf3 {[%clk 0:01:43]}  Ra7 {[%clk 0:00:41]} 33. h5 {[%clk 0:01:43]}  Ra8 {[%clk 0:00:41]} 34. g4 {[%clk 0:01:43]}  Rh8 {[%clk 0:00:29]} 35. Re2 {[%clk 0:01:38]}  Kd6 {[%clk 0:00:28]} 36. Re1 {[%clk 0:01:36]}  Ra8 {[%clk 0:00:27]} 37. g5 {[%clk 0:01:33]}  Rh8 {[%clk 0:00:19]} 38. Rh1 {[%clk 0:01:32]}  f6 {[%clk 0:00:18]} 39. gxf6 {[%clk 0:01:29]}  Nxf6 {[%clk 0:00:18]} 40. Nd2 {[%clk 0:01:28]}  Ra8 {[%clk 0:00:17]} 41. Nb1 {[%clk 0:01:21]}  Ra7 {[%clk 0:00:16]} 42. Ke2 {[%clk 0:01:20]}  Ra8 {[%clk 0:00:16]} 43. Kd2 {[%clk 0:01:20]}  Ra7 {[%clk 0:00:16]} 44. Kc2 {[%clk 0:01:20]}  Ne4 {[%clk 0:00:15]} 45. f3 {[%clk 0:01:17]}  Nf6 {[%clk 0:00:14]} 46. Kb2 {[%clk 0:01:15]}  Nd5 {[%clk 0:00:14]} 47. Rh4 {[%clk 0:01:14]}  Rf7 {[%clk 0:00:14]} 48. Nd2 {[%clk 0:01:15]}  Rxf4 {[%clk 0:00:12]} 49. Rh3 {[%clk 0:01:10]}  Rf5 {[%clk 0:00:12]} 50. a4 {[%clk 0:01:10]}  Kc6 {[%clk 0:00:10]} 51. axb5+ {[%clk 0:01:08]}  Kxb5 {[%clk 0:00:08]} 52. Ne4 {[%clk 0:01:06]}  Ka4 {[%clk 0:00:07]} 53. Nc5+ {[%clk 0:00:58]}  Kb5 {[%clk 0:00:07]} 54. Nxe6 {[%clk 0:00:58]}  Nf4 {[%clk 0:00:07]} 55. Nxf4 {[%clk 0:00:57]}  Rxf4 {[%clk 0:00:07]} 56. Ka3 {[%clk 0:00:58]}  Rf5 {[%clk 0:00:06]} 57. Kb2 {[%clk 0:00:55]}  Ka4 {[%clk 0:00:06]} 58. Kc2 {[%clk 0:00:55]}  Ka3 {[%clk 0:00:05]} 59. Rh1 {[%clk 0:00:37]}  Ka2 {[%clk 0:00:04]} 60. Rh3 {[%clk 0:00:38]}  Rg5 {[%clk 0:00:04]} 61. Rh2 {[%clk 0:00:37]}  Rg3 {[%clk 0:00:04]} 62. d5 {[%clk 0:00:35]}  Rxf3 {[%clk 0:00:03]} 63. d6 {[%clk 0:00:34]}  Rf8 {[%clk 0:00:02]} 64. Rd2 {[%clk 0:00:34]}  Rd8 {[%clk 0:00:02]} 65. d7 {[%clk 0:00:34]}  Ka3 {[%clk 0:00:02]} 66. Rd5 {[%clk 0:00:33]}  Ka4 {[%clk 0:00:02]} 67. Kb2 {[%clk 0:00:31]}  Rb8+ {[%clk 0:00:01]} 68. Kc1 {[%clk 0:00:31]}  Rd8 {[%clk 0:00:01]} 69. Kc2 {[%clk 0:00:32]} 1-0


[Site "https://www.chess.com"]

[Event "Titled Tuesday Blitz November 08 Late 2022"]
[White "Sibilio, Mario"]
[Black "Papayan, Oleg"]
[WhiteFideId "800422"]
[BlackFideId "4193911"]
[WhiteElo "2251"]
[BlackElo "2153"]
[Result "1-0"]
[Round "07"]
[TimeControl "180+1"]
[Date "2022.11.09"]
[WhiteClock "0:00:20"]
[BlackClock "0:00:02"]

1. Nf3 {[%clk 0:03:00]}  Nf6 {[%clk 0:03:00]} 2. c4 {[%clk 0:02:59]}  e6 {[%clk 0:02:59]} 3. d4 {[%clk 0:02:56]}  d5 {[%clk 0:03:00]} 4. Nc3 {[%clk 0:02:54]}  c5 {[%clk 0:02:59]} 5. cxd5 {[%clk 0:02:50]}  Nxd5 {[%clk 0:03:00]} 6. e3 {[%clk 0:02:49]}  Nc6 {[%clk 0:02:55]} 7. Bd3 {[%clk 0:02:48]}  cxd4 {[%clk 0:02:49]} 8. exd4 {[%clk 0:02:48]}  b6 {[%clk 0:02:44]} 9. Bb5 {[%clk 0:02:35]}  Bd7 {[%clk 0:02:39]} 10. Nxd5 {[%clk 0:02:30]}  exd5 {[%clk 0:02:40]} 11. O-O {[%clk 0:02:24]}  Be7 {[%clk 0:02:41]} 12. Bf4 {[%clk 0:02:22]}  O-O {[%clk 0:02:40]} 13. Rc1 {[%clk 0:02:21]}  Rc8 {[%clk 0:02:24]} 14. Ba6 {[%clk 0:02:19]}  Bf6 {[%clk 0:01:20]} 15. Bxc8 {[%clk 0:01:55]}  Qxc8 {[%clk 0:01:21]} 16. Bd6 {[%clk 0:01:48]}  Re8 {[%clk 0:01:18]} 17. Ne5 {[%clk 0:01:48]}  Qb7 {[%clk 0:01:17]} 18. Re1 {[%clk 0:01:44]}  Nxe5 {[%clk 0:01:05]} 19. dxe5 {[%clk 0:01:38]}  Bd8 {[%clk 0:01:02]} 20. Rc3 {[%clk 0:01:34]}  b5 {[%clk 0:00:51]} 21. b4 {[%clk 0:01:19]}  Bb6 {[%clk 0:00:47]} 22. Bc5 {[%clk 0:01:16]}  Bc7 {[%clk 0:00:47]} 23. Qd4 {[%clk 0:01:11]}  Qa6 {[%clk 0:00:36]} 24. a3 {[%clk 0:01:05]}  f6 {[%clk 0:00:26]} 25. f4 {[%clk 0:00:58]}  fxe5 {[%clk 0:00:25]} 26. Qxd5+ {[%clk 0:00:43]}  Be6 {[%clk 0:00:24]} 27. Qf3 {[%clk 0:00:41]}  exf4 {[%clk 0:00:18]} 28. Bd4 {[%clk 0:00:35]}  Bb6 {[%clk 0:00:14]} 29. Bxb6 {[%clk 0:00:30]}  Qxb6+ {[%clk 0:00:15]} 30. Qf2 {[%clk 0:00:30]}  Qd6 {[%clk 0:00:13]} 31. Rc5 {[%clk 0:00:27]}  Rb8 {[%clk 0:00:06]} 32. Rce5 {[%clk 0:00:25]}  Bc4 {[%clk 0:00:06]} 33. Qxf4 {[%clk 0:00:25]}  Qd7 {[%clk 0:00:02]} 34. Qe4 {[%clk 0:00:20]} 1-0


[Site "https://www.chess.com"]

[Event "Titled Tuesday Blitz November 08 Late 2022"]
[White "Stoyanov, Tsvetan"]
[Black "Mazurkiewicz, Michal"]
[WhiteFideId "2917173"]
[BlackFideId "1124943"]
[WhiteElo "2349"]
[BlackElo "2063"]
[Result "1-0"]
[Round "07"]
[TimeControl "180+1"]
[Date "2022.11.09"]
[WhiteClock "0:00:06"]
[BlackClock "0:00:02"]

1. e4 {[%clk 0:03:00]}  d6 {[%clk 0:03:00]} 2. d4 {[%clk 0:03:00]}  Nf6 {[%clk 0:03:00]} 3. Nc3 {[%clk 0:03:01]}  c6 {[%clk 0:03:01]} 4. Nf3 {[%clk 0:03:01]}  Bg4 {[%clk 0:03:00]} 5. Be2 {[%clk 0:03:00]}  e6 {[%clk 0:03:00]} 6. h3 {[%clk 0:02:57]}  Bh5 {[%clk 0:03:01]} 7. g4 {[%clk 0:02:54]}  Bg6 {[%clk 0:02:59]} 8. e5 {[%clk 0:02:55]}  Nd5 {[%clk 0:02:56]} 9. Nxd5 {[%clk 0:02:51]}  cxd5 {[%clk 0:02:49]} 10. Bg5 {[%clk 0:02:41]}  Qb6 {[%clk 0:02:38]} 11. a4 {[%clk 0:02:23]}  Nc6 {[%clk 0:02:33]} 12. O-O {[%clk 0:02:04]}  Be4 {[%clk 0:02:27]} 13. a5 {[%clk 0:01:34]}  Nxa5 {[%clk 0:02:22]} 14. Nd2 {[%clk 0:01:24]}  Bg6 {[%clk 0:02:13]} 15. c4 {[%clk 0:01:22]}  dxc4 {[%clk 0:02:10]} 16. Qa4+ {[%clk 0:01:16]}  Nc6 {[%clk 0:02:02]} 17. Nxc4 {[%clk 0:01:10]}  Qxd4 {[%clk 0:01:50]} 18. Be3 {[%clk 0:00:52]}  Qe4 {[%clk 0:01:08]} 19. exd6 {[%clk 0:00:41]}  Rd8 {[%clk 0:01:05]} 20. Rfd1 {[%clk 0:00:39]}  h5 {[%clk 0:00:55]} 21. Qb5 {[%clk 0:00:19]}  hxg4 {[%clk 0:00:49]} 22. d7+ {[%clk 0:00:19]}  Rxd7 {[%clk 0:00:40]} 23. Rxd7 {[%clk 0:00:19]}  Rxh3 {[%clk 0:00:29]} 24. f3 {[%clk 0:00:18]}  gxf3 {[%clk 0:00:20]} 25. Bf1 {[%clk 0:00:06]}  Qg4+ {[%clk 0:00:10]} 26. Kf2 {[%clk 0:00:06]}  Rh2+ {[%clk 0:00:09]} 27. Ke1 {[%clk 0:00:07]}  Kxd7 {[%clk 0:00:07]} 28. Qxb7+ {[%clk 0:00:06]}  Kd8 {[%clk 0:00:02]} 29. Rd1+ {[%clk 0:00:06]} 1-0


[Site "https://www.chess.com"]

[Event "Titled Tuesday Blitz November 08 Late 2022"]
[White "Swiercz, Dariusz"]
[Black "Preotu, Razvan"]
[WhiteFideId "1126881"]
[BlackFideId "2613280"]
[WhiteElo "2627"]
[BlackElo "2407"]
[Result "1-0"]
[Round "07"]
[TimeControl "180+1"]
[Date "2022.11.08"]
[WhiteClock "0:00:04"]
[BlackClock "0:00:05"]

1. d4 {[%clk 0:03:00]}  Nf6 {[%clk 0:03:00]} 2. Bg5 {[%clk 0:03:01]}  d5 {[%clk 0:03:00]} 3. e3 {[%clk 0:03:00]}  c5 {[%clk 0:02:58]} 4. Bxf6 {[%clk 0:03:00]}  gxf6 {[%clk 0:02:57]} 5. dxc5 {[%clk 0:03:00]}  e6 {[%clk 0:02:57]} 6. a3 {[%clk 0:03:00]}  Bxc5 {[%clk 0:02:57]} 7. Nf3 {[%clk 0:02:59]}  b6 {[%clk 0:02:50]} 8. Bb5+ {[%clk 0:02:52]}  Nd7 {[%clk 0:02:43]} 9. c4 {[%clk 0:02:47]}  dxc4 {[%clk 0:02:40]} 10. Nc3 {[%clk 0:02:41]}  f5 {[%clk 0:02:37]} 11. Bxc4 {[%clk 0:02:37]}  Bb7 {[%clk 0:02:32]} 12. O-O {[%clk 0:02:32]}  O-O {[%clk 0:02:29]} 13. Qe2 {[%clk 0:02:31]}  Qf6 {[%clk 0:02:13]} 14. Ba6 {[%clk 0:02:26]}  Bxf3 {[%clk 0:01:57]} 15. Qxf3 {[%clk 0:02:24]}  Ne5 {[%clk 0:01:57]} 16. Qe2 {[%clk 0:02:23]}  Kh8 {[%clk 0:01:51]} 17. g3 {[%clk 0:02:12]}  Qh6 {[%clk 0:01:41]} 18. Kg2 {[%clk 0:01:41]}  Rg8 {[%clk 0:01:39]} 19. Bb7 {[%clk 0:01:26]}  Rab8 {[%clk 0:01:00]} 20. Bf3 {[%clk 0:01:26]}  Qf6 {[%clk 0:00:44]} 21. Rac1 {[%clk 0:01:20]}  Rbd8 {[%clk 0:00:44]} 22. Rfd1 {[%clk 0:01:19]}  Ng6 {[%clk 0:00:32]} 23. Kg1 {[%clk 0:01:12]}  Ne5 {[%clk 0:00:32]} 24. Bg2 {[%clk 0:00:59]}  Ng4 {[%clk 0:00:26]} 25. Rxd8 {[%clk 0:00:55]}  Rxd8 {[%clk 0:00:25]} 26. b4 {[%clk 0:00:55]}  Bf8 {[%clk 0:00:25]} 27. Nb5 {[%clk 0:00:49]}  a5 {[%clk 0:00:24]} 28. bxa5 {[%clk 0:00:36]}  bxa5 {[%clk 0:00:24]} 29. a4 {[%clk 0:00:36]}  Bb4 {[%clk 0:00:21]} 30. Nd4 {[%clk 0:00:37]}  Ne5 {[%clk 0:00:20]} 31. h3 {[%clk 0:00:30]}  Qe7 {[%clk 0:00:12]} 32. Qb5 {[%clk 0:00:29]}  Qd6 {[%clk 0:00:08]} 33. Qb7 {[%clk 0:00:18]}  Rb8 {[%clk 0:00:08]} 34. Qa7 {[%clk 0:00:18]}  Rf8 {[%clk 0:00:05]} 35. Qb7 {[%clk 0:00:12]}  Nd3 {[%clk 0:00:06]} 36. Rc6 {[%clk 0:00:10]}  Qe5 {[%clk 0:00:05]} 37. Rc8 {[%clk 0:00:10]}  Rxc8 {[%clk 0:00:05]} 38. Qxc8+ {[%clk 0:00:11]}  Kg7 {[%clk 0:00:05]} 39. Bf1 {[%clk 0:00:08]}  Nc5 {[%clk 0:00:04]} 40. Qe8 {[%clk 0:00:07]}  Be1 {[%clk 0:00:02]} 41. Qb5 {[%clk 0:00:02]}  Ne4 {[%clk 0:00:03]} 42. Qxe5+ {[%clk 0:00:02]}  Kg6 {[%clk 0:00:04]} 43. Kg2 {[%clk 0:00:02]}  Bxf2 {[%clk 0:00:05]} 44. Nf3 {[%clk 0:00:03]}  Bxe3 {[%clk 0:00:05]} 45. Qb8 {[%clk 0:00:03]}  Kf6 {[%clk 0:00:05]} 46. Qh8+ {[%clk 0:00:03]}  Ke7 {[%clk 0:00:05]} 47. Bd3 {[%clk 0:00:04]}  Nd6 {[%clk 0:00:05]} 48. Qb8 {[%clk 0:00:04]}  h6 {[%clk 0:00:05]} 49. Qc7+ {[%clk 0:00:04]} 1-0


[Site "https://www.chess.com"]

[Event "Titled Tuesday Blitz November 08 Late 2022"]
[White "Thiel, Thomas"]
[Black "Ibadov, Dashgyn"]
[WhiteFideId "4615964"]
[BlackFideId "24107514"]
[WhiteElo "2221"]
[BlackElo "2208"]
[Result "0-1"]
[Round "07"]
[TimeControl "180+1"]
[Date "2022.11.09"]
[WhiteClock "0:00:47"]
[BlackClock "0:00:38"]

1. e4 {[%clk 0:03:00]}  e6 {[%clk 0:02:56]} 2. d4 {[%clk 0:02:59]}  d5 {[%clk 0:02:57]} 3. Nc3 {[%clk 0:02:56]}  Nf6 {[%clk 0:02:57]} 4. Bg5 {[%clk 0:02:54]}  Be7 {[%clk 0:02:57]} 5. e5 {[%clk 0:02:54]}  Nfd7 {[%clk 0:02:57]} 6. h4 {[%clk 0:02:53]}  h6 {[%clk 0:02:57]} 7. Bxe7 {[%clk 0:02:51]}  Qxe7 {[%clk 0:02:58]} 8. f4 {[%clk 0:02:49]}  a6 {[%clk 0:02:59]} 9. Nf3 {[%clk 0:02:47]}  c5 {[%clk 0:02:59]} 10. Ne2 {[%clk 0:02:45]}  Nc6 {[%clk 0:03:00]} 11. c3 {[%clk 0:02:43]}  b5 {[%clk 0:02:59]} 12. dxc5 {[%clk 0:02:40]}  Nxc5 {[%clk 0:02:59]} 13. Ned4 {[%clk 0:02:40]}  Nxd4 {[%clk 0:02:54]} 14. Nxd4 {[%clk 0:02:41]}  O-O {[%clk 0:02:51]} 15. Qg4 {[%clk 0:02:31]}  f6 {[%clk 0:02:47]} 16. Qg3 {[%clk 0:02:19]}  fxe5 {[%clk 0:02:45]} 17. fxe5 {[%clk 0:02:20]}  Ne4 {[%clk 0:02:40]} 18. Qe3 {[%clk 0:02:18]}  Qc7 {[%clk 0:02:19]} 19. Nf3 {[%clk 0:02:15]}  b4 {[%clk 0:02:07]} 20. cxb4 {[%clk 0:02:04]}  Qc2 {[%clk 0:02:07]} 21. Be2 {[%clk 0:01:49]}  Qxb2 {[%clk 0:01:43]} 22. O-O {[%clk 0:01:46]}  Qxb4 {[%clk 0:01:42]} 23. Bd3 {[%clk 0:01:37]}  Qc5 {[%clk 0:01:35]} 24. Nd4 {[%clk 0:01:27]}  Bb7 {[%clk 0:01:17]} 25. Bxe4 {[%clk 0:01:26]}  dxe4 {[%clk 0:01:17]} 26. Rxf8+ {[%clk 0:01:18]}  Rxf8 {[%clk 0:01:16]} 27. Rf1 {[%clk 0:01:16]}  Rxf1+ {[%clk 0:01:10]} 28. Kxf1 {[%clk 0:01:17]}  Qxe5 {[%clk 0:01:11]} 29. Ke2 {[%clk 0:01:11]}  Bd5 {[%clk 0:01:04]} 30. a3 {[%clk 0:01:01]}  Kh7 {[%clk 0:01:03]} 31. g3 {[%clk 0:01:00]}  Qb8 {[%clk 0:00:59]} 32. Qc3 {[%clk 0:00:55]}  Qb1 {[%clk 0:00:58]} 33. Ke3 {[%clk 0:00:49]}  Qg1+ {[%clk 0:00:52]} 34. Kf4 {[%clk 0:00:49]}  Qf2+ {[%clk 0:00:50]} 35. Ke5 {[%clk 0:00:49]}  Qf6+ {[%clk 0:00:39]} 36. Kd6 {[%clk 0:00:48]}  Qd8+ {[%clk 0:00:39]} 37. Ke5 {[%clk 0:00:47]}  Qb8+ {[%clk 0:00:38]} 0-1


[Site "https://www.chess.com"]

[Event "Titled Tuesday Blitz November 08 Late 2022"]
[White "Thomforde-Toates, Noah"]
[Black "Rangel, Daniel"]
[WhiteFideId "30951992"]
[BlackFideId "2124475"]
[WhiteElo "2612"]
[BlackElo "2225"]
[Result "1-0"]
[Round "07"]
[TimeControl "180+1"]
[Date "2022.11.09"]
[WhiteClock "0:01:30"]
[BlackClock "0:00:17"]

1. d4 {[%clk 0:03:00]}  Nf6 {[%clk 0:02:59]} 2. Nc3 {[%clk 0:03:01]}  c5 {[%clk 0:02:58]} 3. d5 {[%clk 0:03:00]}  d6 {[%clk 0:02:58]} 4. e4 {[%clk 0:03:00]}  g6 {[%clk 0:02:59]} 5. Nf3 {[%clk 0:02:59]}  Bg7 {[%clk 0:03:00]} 6. Nd2 {[%clk 0:02:59]}  O-O {[%clk 0:03:00]} 7. Be2 {[%clk 0:02:59]}  e6 {[%clk 0:03:01]} 8. O-O {[%clk 0:02:58]}  exd5 {[%clk 0:03:02]} 9. exd5 {[%clk 0:02:58]}  b6 {[%clk 0:03:00]} 10. a4 {[%clk 0:02:57]}  Nbd7 {[%clk 0:02:57]} 11. Nc4 {[%clk 0:02:57]}  Qe7 {[%clk 0:02:56]} 12. Bf4 {[%clk 0:02:56]}  Ne5 {[%clk 0:02:54]} 13. Re1 {[%clk 0:02:53]}  Ne8 {[%clk 0:02:45]} 14. Bf1 {[%clk 0:02:46]}  Bf5 {[%clk 0:01:57]} 15. Nb5 {[%clk 0:02:29]}  Rd8 {[%clk 0:01:21]} 16. Nbxd6 {[%clk 0:02:19]}  Nxd6 {[%clk 0:01:22]} 17. Nxe5 {[%clk 0:01:59]}  Bxe5 {[%clk 0:01:18]} 18. Bxe5 {[%clk 0:01:58]}  f6 {[%clk 0:01:15]} 19. Bc3 {[%clk 0:01:57]}  Qd7 {[%clk 0:01:13]} 20. Qf3 {[%clk 0:01:51]}  Bxc2 {[%clk 0:01:07]} 21. Re6 {[%clk 0:01:51]}  Ne4 {[%clk 0:01:00]} 22. Rxe4 {[%clk 0:01:49]}  Bxe4 {[%clk 0:01:00]} 23. Qxe4 {[%clk 0:01:49]}  Kg7 {[%clk 0:00:51]} 24. Qf3 {[%clk 0:01:45]}  Qxd5 {[%clk 0:00:50]} 25. Qxd5 {[%clk 0:01:42]}  Rxd5 {[%clk 0:00:51]} 26. Re1 {[%clk 0:01:42]}  Rd7 {[%clk 0:00:45]} 27. Bb5 {[%clk 0:01:41]}  Rc7 {[%clk 0:00:45]} 28. Re6 {[%clk 0:01:39]}  Rff7 {[%clk 0:00:44]} 29. g3 {[%clk 0:01:34]}  g5 {[%clk 0:00:36]} 30. Kg2 {[%clk 0:01:32]}  Kg6 {[%clk 0:00:36]} 31. Bd3+ {[%clk 0:01:32]}  Kg7 {[%clk 0:00:36]} 32. Bf5 {[%clk 0:01:32]}  a6 {[%clk 0:00:29]} 33. Rxb6 {[%clk 0:01:31]}  Ra7 {[%clk 0:00:25]} 34. a5 {[%clk 0:01:31]}  c4 {[%clk 0:00:24]} 35. Be6 {[%clk 0:01:30]}  Rfb7 {[%clk 0:00:24]} 36. Bxc4 {[%clk 0:01:30]}  Rxb6 {[%clk 0:00:21]} 37. axb6 {[%clk 0:01:31]}  Rb7 {[%clk 0:00:22]} 38. Bd4 {[%clk 0:01:32]}  a5 {[%clk 0:00:18]} 39. Ba6 {[%clk 0:01:31]}  Rb8 {[%clk 0:00:19]} 40. b7 {[%clk 0:01:31]}  Kh6 {[%clk 0:00:17]} 41. Ba7 {[%clk 0:01:30]} 1-0


[Site "https://www.chess.com"]